[Event "FIDE Women World Blitz 2021"]
[Site "Warsaw"]
[Date "2021.12.29"]
[Round "6.12"]
[White "Mamedjarova, Turkan"]
[Black "Muzychuk, Anna"]
[Result "1-0"]
[ECO "B04"]
[WhiteElo "2264"]
[BlackElo "2533"]
[Annotator "ChessBase"]
[PlyCount "159"]
[EventDate "2021.12.29"]
[EventType "swiss"]
[EventCountry "POL"]
[Tiebreak "Cut1 Buchholz"]
[SourceTitle "playchess.com"]
[Source "ChessBase"]
[SourceQuality "1"]
[TimeControl "180+2"]

1. d4 {[%emt 0:00:02]} Nf6 {[%emt 0:00:00]} 2. c4 {[%emt 0:00:01]} g6 {[%emt 0:
00:01]} 3. Nc3 {[%emt 0:00:01]} d5 4. Nf3 {[%emt 0:00:03]} Bg7 {[%emt 0:00:01]}
5. e3 {[%emt 0:00:11]} O-O {[%emt 0:00:08]} 6. Be2 {[%emt 0:00:05]} dxc4 {
[%emt 0:00:04]} 7. Bxc4 {[%emt 0:00:04]} c5 {[%emt 0:00:01]} 8. O-O {[%emt 0:
00:05]} cxd4 {[%emt 0:00:06]} 9. exd4 {[%emt 0:00:10]} Bg4 {[%emt 0:00:05]} 10.
Be3 {[%emt 0:00:09]} Nc6 {[%emt 0:00:03]} 11. Be2 {[%emt 0:00:07]} Nd5 {
[%emt 0:00:08]} 12. h3 {[%emt 0:00:11]} Bf5 {[%emt 0:00:08]} 13. Nxd5 {[%emt 0:
00:06]} Qxd5 {[%emt 0:00:01]} 14. Qa4 {[%emt 0:00:08]} Rfd8 {[%emt 0:00:17]}
15. Rfd1 {[%emt 0:00:07]} a6 {[%emt 0:00:09]} 16. Rac1 {[%emt 0:00:04]} Rac8 {
[%emt 0:00:28]} 17. Qa3 {[%emt 0:00:09]} Qd6 {[%emt 0:00:07]} 18. Qxd6 {
[%emt 0:00:16]} exd6 {[%emt 0:00:03]} 19. a3 {[%emt 0:00:09]} Ne7 {[%emt 0:00:
11]} 20. Bg5 {[%emt 0:00:03]} f6 {[%emt 0:00:03]} 21. Bf4 {[%emt 0:00:01]} Kf7
{[%emt 0:00:29]} 22. Rxc8 {[%emt 0:00:09]} Bxc8 {[%emt 0:00:11]} 23. Rc1 {
[%emt 0:00:08]} Nd5 {[%emt 0:00:24]} 24. Bc4 {[%emt 0:00:03]} Be6 {[%emt 0:00:
01]} 25. Bd2 {[%emt 0:00:24]} Rc8 {[%emt 0:00:03]} 26. Kh2 {[%emt 0:00:10]} Rc6
{[%emt 0:00:17]} 27. a4 {[%emt 0:00:18]} Nb6 {[%emt 0:00:07]} 28. Bxe6+ Kxe6 {
[%emt 0:00:00]} 29. Re1+ {[%emt 0:00:07]} Kf7 {[%emt 0:00:01]} 30. b3 {[%emt 0:
00:04]} Nd5 {[%emt 0:00:02]} 31. Rc1 {[%emt 0:00:06]} Rxc1 {[%emt 0:00:02]} 32.
Bxc1 {[%emt 0:00:01]} h6 {[%emt 0:00:02]} 33. Kg1 {[%emt 0:00:02]} g5 {[%emt 0:
00:03]} 34. Ba3 {[%emt 0:00:08]} Ke6 {[%emt 0:00:02]} 35. Nd2 {[%emt 0:00:05]}
f5 {[%emt 0:00:07]} 36. Nc4 {[%emt 0:00:02]} Bf8 {[%emt 0:00:02]} 37. Kf1 {
[%emt 0:00:02]} f4 {[%emt 0:00:08]} 38. Ke2 {[%emt 0:00:02]} b5 {[%emt 0:00:02]
} 39. axb5 {[%emt 0:00:05]} axb5 {[%emt 0:00:00]} 40. Nd2 {[%emt 0:00:01]} Kf5
{[%emt 0:00:06]} 41. Kd3 {[%emt 0:00:02]} Nf6 {[%emt 0:00:02]} 42. g4+ {
[%emt 0:00:07]} fxg3 {[%emt 0:00:01]} 43. fxg3 {[%emt 0:00:01]} h5 {[%emt 0:00:
02]} 44. Bc1 {[%emt 0:00:02]} g4 {[%emt 0:00:02]} 45. h4 {[%emt 0:00:02]} d5 {
[%emt 0:00:02]} 46. Nf1 {[%emt 0:00:01]} Bd6 {[%emt 0:00:01]} 47. Bd2 {[%emt 0:
00:03]} Ne4 {[%emt 0:00:01]} 48. Be1 {[%emt 0:00:01]} Ke6 {[%emt 0:00:01]} 49.
b4 {[%emt 0:00:01]} Bc7 {[%emt 0:00:05]} 50. Kc2 {[%emt 0:00:02]} Bb8 {[%emt 0:
00:03]} 51. Kd3 {[%emt 0:00:02]} Bd6 {[%emt 0:00:01]} 52. Kc2 {[%emt 0:00:01]}
Nf6 {[%emt 0:00:05]} 53. Ne3 {[%emt 0:00:05]} Ne4 {[%emt 0:00:01]} 54. Nf1 {
[%emt 0:00:01]} Bf8 {[%emt 0:00:04]} 55. Kd3 {[%emt 0:00:02]} Nd6 {[%emt 0:00:
01]} 56. Kc2 {[%emt 0:00:04]} Kf5 {[%emt 0:00:02]} 57. Kd3 {[%emt 0:00:02]} Nc4
{[%emt 0:00:01]} 58. Bc3 {[%emt 0:00:02]} Bd6 {[%emt 0:00:03]} 59. Be1 {
[%emt 0:00:01]} Nb2+ {[%emt 0:00:01]} 60. Kc2 {[%emt 0:00:01]} Nc4 {[%emt 0:00:
02]} 61. Kd3 {[%emt 0:00:01]} Ke6 {[%emt 0:00:02]} 62. Bc3 {[%emt 0:00:02]} Bc7
{[%emt 0:00:05]} 63. Be1 {[%emt 0:00:02]} Nd6 {[%emt 0:00:01]} 64. Ne3 {
[%emt 0:00:03]} Ne4 {[%emt 0:00:02]} 65. Nf1 {[%emt 0:00:02]} Bd6 {[%emt 0:00:
02]} 66. Kc2 {[%emt 0:00:02]} Nf6 {[%emt 0:00:03]} 67. Kd3 {[%emt 0:00:01]} Ne8
{[%emt 0:00:01]} 68. Ne3 {[%emt 0:00:02]} Ng7 {[%emt 0:00:01]} 69. Nf1 {
[%emt 0:00:05]} Nf5 {[%emt 0:00:01]} 70. Kc3 {[%emt 0:00:01]} Ne7 {[%emt 0:00:
03]} 71. Ne3 {[%emt 0:00:03]} Nc6 {[%emt 0:00:00]} 72. Nc2 {[%emt 0:00:01]} Kf5
{[%emt 0:00:01]} 73. Kd3 {[%emt 0:00:01]} Be7 {[%emt 0:00:03]} 74. Bd2 {
[%emt 0:00:01]} Bf8 {[%emt 0:00:02]} 75. Be1 {[%emt 0:00:04]} Bd6 76. Ke3 Nd8 {
[%emt 0:00:05]} 77. Kd3 {[%emt 0:00:02]} Ke6 {[%emt 0:00:01]} 78. Ne3 {[%emt 0:
00:03]} Nc6 {[%emt 0:00:01]} 79. Nc2 {[%emt 0:00:00]} Ne7 {[%emt 0:00:03]} 80.
Ne3 {[%emt 0:00:04]} 1-0

[Event "FIDE Women World Blitz 2021"]
[Site "Warsaw"]
[Date "2021.12.29"]
[Round "6.12"]
[White "Heredia Serrano, Carla"]
[Black "Kubicka, Anna"]
[Result "1/2-1/2"]
[ECO "B51"]
[WhiteElo "2138"]
[BlackElo "2273"]
[Annotator "NA"]
[PlyCount "42"]
[EventDate "2021.12.29"]
[EventType "swiss"]
[EventCountry "POL"]
[Tiebreak "Cut1 Buchholz"]
[SourceTitle "playchess.com"]
[Source "ChessBase"]
[SourceQuality "1"]
[TimeControl "180+2"]

1. e4 {[%emt 0:00:01]} c5 {[%emt 0:00:01]} 2. Nf3 {[%emt 0:00:01]} d6 {[%emt 0:
00:01]} 3. Bb5+ {[%emt 0:00:01]} Nd7 {[%emt 0:00:01]} 4. O-O {[%emt 0:00:01]}
a6 {[%emt 0:00:00]} 5. Bxd7+ {[%emt 0:00:02]} Bxd7 {[%emt 0:00:03]} 6. c3 {
[%emt 0:00:01]} Nf6 {[%emt 0:00:03]} 7. Re1 {[%emt 0:00:03]} Bc6 {[%emt 0:00:
01]} 8. d4 {[%emt 0:00:02]} cxd4 {[%emt 0:00:05]} 9. cxd4 {[%emt 0:00:01]} Bxe4
{[%emt 0:00:10]} 10. Bg5 {[%emt 0:00:01]} Bg6 {[%emt 0:00:35]} 11. Nc3 {
[%emt 0:00:12]} e6 {[%emt 0:00:02]} 12. Bxf6 {[%emt 0:00:39]} gxf6 {[%emt 0:00:
04]} 13. d5 {[%emt 0:00:05]} e5 {[%emt 0:00:03]} 14. Qb3 {[%emt 0:00:16]} Rb8 {
[%emt 0:00:23]} 15. a4 {[%emt 0:00:17]} Be7 {[%emt 0:00:04]} 16. a5 {[%emt 0:
00:14]} O-O {[%emt 0:00:03]} 17. Ra4 {[%emt 0:00:12]} f5 {[%emt 0:00:06]} 18.
Ne2 {[%emt 0:00:05]} Kh8 {[%emt 0:00:08]} 19. Ng3 {[%emt 0:00:01]} Qd7 {
[%emt 0:00:10]} 20. h4 {[%emt 0:00:11]} f4 {[%emt 0:00:11]} 21. Nf1 {[%emt 0:
00:19]} Qg4 {[%emt 0:00:08]} 1/2-1/2

[Event "FIDE Women World Blitz 2021"]
[Site "Warsaw"]
[Date "2021.12.29"]
[Round "6.13"]
[White "Mamedjarova, Zeinab"]
[Black "Stefanova, Antoaneta"]
[Result "1/2-1/2"]
[ECO "D04"]
[WhiteElo "2249"]
[BlackElo "2475"]
[Annotator "ChessBase"]
[PlyCount "73"]
[EventDate "2021.12.29"]
[EventType "swiss"]
[EventCountry "POL"]
[Tiebreak "Cut1 Buchholz"]
[SourceTitle "playchess.com"]
[Source "ChessBase"]
[SourceQuality "1"]
[TimeControl "180+2"]

1. d4 {[%emt 0:00:01]} d5 {[%emt 0:00:01]} 2. Nf3 {[%emt 0:00:01]} Nf6 {
[%emt 0:00:02]} 3. e3 Bf5 {[%emt 0:00:04]} 4. Bd3 {[%emt 0:00:07]} Bg6 {
[%emt 0:00:08]} 5. O-O {[%emt 0:00:03]} e6 {[%emt 0:00:03]} 6. b3 {[%emt 0:00:
14]} Nbd7 {[%emt 0:00:05]} 7. Bb2 {[%emt 0:00:02]} Be7 {[%emt 0:00:16]} 8. Nbd2
{[%emt 0:00:12]} Ne4 {[%emt 0:00:07]} 9. Qe2 {[%emt 0:00:24]} O-O {[%emt 0:00:
11]} 10. c4 {[%emt 0:00:15]} c6 {[%emt 0:00:03]} 11. Rfd1 {[%emt 0:00:03]} a5 {
[%emt 0:00:04]} 12. Ne5 {[%emt 0:00:30]} Nxe5 {[%emt 0:00:03]} 13. dxe5 {
[%emt 0:00:01]} Nxd2 {[%emt 0:00:55]} 14. Rxd2 {[%emt 0:00:05]} Bxd3 {[%emt 0:
00:05]} 15. Rxd3 {[%emt 0:00:17]} Qb6 {[%emt 0:00:17]} 16. cxd5 {[%emt 0:00:03]
} cxd5 {[%emt 0:00:02]} 17. e4 {[%emt 0:00:01]} dxe4 {[%emt 0:00:07]} 18. Qxe4
{[%emt 0:00:01]} a4 {[%emt 0:00:06]} 19. Rd7 {[%emt 0:00:17]} Bc5 {[%emt 0:00:
05]} 20. Rxb7 {[%emt 0:00:02]} Bxf2+ {[%emt 0:00:21]} 21. Kf1 {[%emt 0:00:05]}
Qe3 {[%emt 0:00:03]} 22. Qxe3 {[%emt 0:00:14]} Bxe3 {[%emt 0:00:01]} 23. b4 {
[%emt 0:00:11]} a3 {[%emt 0:00:01]} 24. Bc3 {[%emt 0:00:14]} Rfc8 {[%emt 0:00:
02]} 25. Be1 {[%emt 0:00:10]} Rc2 {[%emt 0:00:02]} 26. b5 {[%emt 0:00:04]} Bd4
{[%emt 0:00:06]} 27. Rd1 {[%emt 0:00:04]} Bxe5 {[%emt 0:00:02]} 28. Ra7 {
[%emt 0:00:07]} Re8 {[%emt 0:00:08]} 29. Rxa3 {[%emt 0:00:05]} Rb2 {[%emt 0:00:
08]} 30. Rb3 {[%emt 0:00:03]} Rxa2 {[%emt 0:00:08]} 31. b6 h5 {[%emt 0:00:03]}
32. Bf2 {[%emt 0:00:03]} Raa8 {[%emt 0:00:06]} 33. b7 {[%emt 0:00:01]} Rad8 {
[%emt 0:00:02]} 34. Rxd8 Rxd8 {[%emt 0:00:01]} 35. Ba7 {[%emt 0:00:08]} Bb8 {
[%emt 0:00:01]} 36. Bxb8 {[%emt 0:00:03]} Rxb8 {[%emt 0:00:00]} 37. Ke2 {
[%emt 0:00:00]} 1/2-1/2

[Event "FIDE Women World Blitz 2021"]
[Site "Warsaw"]
[Date "2021.12.29"]
[Round "6.13"]
[White "Brambilla, Renee Blandy T."]
[Black "Rudzinska, Michalina"]
[Result "1-0"]
[ECO "A46"]
[WhiteElo "1651"]
[BlackElo "1832"]
[Annotator "NA"]
[PlyCount "40"]
[EventDate "2021.12.29"]
[EventType "swiss"]
[EventCountry "POL"]
[Tiebreak "Cut1 Buchholz"]
[SourceTitle "playchess.com"]
[Source "ChessBase"]
[SourceQuality "1"]
[TimeControl "180+2"]

1. d4 {[%emt 0:00:01]} Nf6 {[%emt 0:00:01]} 2. c4 {[%emt 0:00:01]} e6 {[%emt 0:
00:01]} 3. Nf3 {[%emt 0:00:02]} c5 {[%emt 0:00:01]} 4. dxc5 {[%emt 0:00:05]}
Bxc5 {[%emt 0:00:02]} 5. Nc3 {[%emt 0:00:02]} O-O {[%emt 0:00:04]} 6. Bg5 {
[%emt 0:00:04]} Qb6 {[%emt 0:00:11]} 7. e3 {[%emt 0:00:22]} Qxb2 {[%emt 0:00:
06]} 8. Bxf6 {[%emt 0:00:04]} gxf6 {[%emt 0:00:01]} 9. Rc1 {[%emt 0:00:28]} Bb4
{[%emt 0:00:03]} 10. Qc2 {[%emt 0:00:10]} Qxc2 {[%emt 0:00:08]} 11. Rxc2 {
[%emt 0:00:02]} Nc6 {[%emt 0:00:07]} 12. Bd3 {[%emt 0:00:11]} Ba5 {[%emt 0:00:
24]} 13. Ke2 {[%emt 0:00:03]} Nb4 {[%emt 0:00:02]} 14. Rcc1 {[%emt 0:00:14]}
Nxd3 {[%emt 0:00:04]} 15. Kxd3 {[%emt 0:00:04]} b6 {[%emt 0:00:04]} 16. h4 {
[%emt 0:00:09]} Ba6 {[%emt 0:00:03]} 17. Ne4 {[%emt 0:00:07]} d5 {[%emt 0:00:
30]} 18. Nxf6+ {[%emt 0:00:21]} Kg7 {[%emt 0:00:01]} 19. Nd7 {[%emt 0:00:07]}
Rfd8 {[%emt 0:00:07]} 20. Nde5 {[%emt 0:00:10]} Rac8 {[%emt 0:00:14]} 1-0

[Event "FIDE Women World Blitz 2021"]
[Site "Warsaw"]
[Date "2021.12.29"]
[Round "6.14"]
[White "Socko, Monika"]
[Black "Michna, Marta"]
[Result "1/2-1/2"]
[ECO "E94"]
[WhiteElo "2393"]
[BlackElo "2312"]
[Annotator "NA"]
[PlyCount "77"]
[EventDate "2021.12.29"]
[EventType "swiss"]
[EventCountry "POL"]
[Tiebreak "Cut1 Buchholz"]
[SourceTitle "playchess.com"]
[Source "ChessBase"]
[SourceQuality "1"]
[TimeControl "180+2"]

1. d4 {[%emt 0:00:02]} Nf6 {[%emt 0:00:01]} 2. c4 {[%emt 0:00:01]} d6 {[%emt 0:
00:02]} 3. Nc3 {[%emt 0:00:01]} Nbd7 {[%emt 0:00:01]} 4. e4 {[%emt 0:00:04]} e5
{[%emt 0:00:01]} 5. Nf3 {[%emt 0:00:02]} g6 {[%emt 0:00:14]} 6. Be2 {[%emt 0:
00:01]} Bg7 {[%emt 0:00:01]} 7. O-O {[%emt 0:00:03]} O-O {[%emt 0:00:02]} 8.
Be3 {[%emt 0:00:02]} Qe7 {[%emt 0:00:07]} 9. d5 {[%emt 0:00:05]} c5 {[%emt 0:
00:06]} 10. dxc6 {[%emt 0:00:10]} bxc6 {[%emt 0:00:01]} 11. Qd2 {[%emt 0:00:17]
} Ng4 {[%emt 0:01:31]} 12. Bg5 {[%emt 0:00:45]} f6 {[%emt 0:00:02]} 13. Bh4 {
[%emt 0:00:01]} g5 {[%emt 0:00:16]} 14. Bg3 {[%emt 0:00:01]} Nc5 {[%emt 0:00:
06]} 15. Rad1 {[%emt 0:00:09]} Rb8 {[%emt 0:00:15]} 16. b3 {[%emt 0:00:04]} Rd8
{[%emt 0:00:13]} 17. Ne1 {[%emt 0:00:12]} Nh6 {[%emt 0:00:05]} 18. h4 {[%emt 0:
00:04]} Ne6 {[%emt 0:00:07]} 19. Nc2 {[%emt 0:00:09]} f5 {[%emt 0:00:07]} 20.
hxg5 {[%emt 0:00:21]} Qxg5 {[%emt 0:00:00]} 21. Qxg5 {[%emt 0:00:03]} Nxg5 {
[%emt 0:00:01]} 22. f3 {[%emt 0:00:15]} Ne6 {[%emt 0:00:09]} 23. Rfe1 {[%emt 0:
00:09]} Kf7 {[%emt 0:00:07]} 24. Bd3 {[%emt 0:00:05]} Nf4 {[%emt 0:00:02]} 25.
Ne2 {[%emt 0:00:13]} Nxd3 {[%emt 0:00:02]} 26. Rxd3 {[%emt 0:00:01]} fxe4 {
[%emt 0:00:01]} 27. fxe4 {[%emt 0:00:01]} Bg4 {[%emt 0:00:03]} 28. Bh4 {
[%emt 0:00:06]} Rd7 29. Ng3 {[%emt 0:00:01]} Ke6 {[%emt 0:00:01]} 30. Ne3 {
[%emt 0:00:03]} Rf8 {[%emt 0:00:04]} 31. Bg5 {[%emt 0:00:01]} Nf7 {[%emt 0:00:
03]} 32. Bh4 {[%emt 0:00:06]} h5 {[%emt 0:00:02]} 33. Nef5 {[%emt 0:00:03]} Bf6
{[%emt 0:00:05]} 34. Bxf6 {[%emt 0:00:04]} Kxf6 35. Rf1 {[%emt 0:00:01]} Ke6 {
[%emt 0:00:05]} 36. Ng7+ {[%emt 0:00:01]} Ke7 {[%emt 0:00:01]} 37. N3xh5 {
[%emt 0:00:02]} Rh8 {[%emt 0:00:03]} 38. Nf6 {[%emt 0:00:04]} Rdd8 {[%emt 0:00:
02]} 39. Nxg4 {[%emt 0:00:01]} 1/2-1/2

[Event "FIDE Women World Blitz 2021"]
[Site "Warsaw"]
[Date "2021.12.29"]
[Round "6.15"]
[White "Lach, Aleksandra"]
[Black "Bodnaruk, Anastasia"]
[Result "0-1"]
[ECO "B23"]
[WhiteElo "2204"]
[BlackElo "2396"]
[Annotator "NA"]
[PlyCount "133"]
[EventDate "2021.12.29"]
[EventType "swiss"]
[EventCountry "POL"]
[Tiebreak "Cut1 Buchholz"]
[SourceTitle "playchess.com"]
[Source "ChessBase"]
[SourceQuality "1"]
[TimeControl "180+2"]

1. e4 {[%emt 0:00:02]} c5 {[%emt 0:00:00]} 2. Nc3 {[%emt 0:00:01]} d6 {[%emt 0:
00:02]} 3. d4 {[%emt 0:00:01]} cxd4 {[%emt 0:00:01]} 4. Qxd4 {[%emt 0:00:01]}
Nc6 {[%emt 0:00:02]} 5. Qd2 {[%emt 0:00:01]} g6 {[%emt 0:00:08]} 6. b3 {
[%emt 0:00:00]} Bh6 {[%emt 0:00:14]} 7. f4 {[%emt 0:00:01]} f5 {[%emt 0:00:01]}
8. Bb2 {[%emt 0:00:16]} Nf6 {[%emt 0:00:02]} 9. O-O-O {[%emt 0:00:18]} fxe4 {
[%emt 0:00:13]} 10. Kb1 {[%emt 0:00:32]} Bg7 {[%emt 0:00:29]} 11. Nh3 {[%emt 0:
00:21]} Qa5 {[%emt 0:00:26]} 12. a3 {[%emt 0:00:20]} Bxh3 {[%emt 0:00:09]} 13.
gxh3 {[%emt 0:00:02]} O-O-O {[%emt 0:00:01]} 14. b4 {[%emt 0:00:12]} Qc7 {
[%emt 0:00:09]} 15. Nd5 {[%emt 0:00:12]} Nxd5 {[%emt 0:00:33]} 16. Bxg7 {
[%emt 0:00:03]} Nb6 {[%emt 0:00:22]} 17. Bxh8 {[%emt 0:00:10]} Rxh8 18. Qc3 {
[%emt 0:00:02]} Rf8 {[%emt 0:00:05]} 19. Be2 {[%emt 0:00:09]} Rxf4 {[%emt 0:00:
09]} 20. Bg4+ {[%emt 0:00:02]} Kb8 {[%emt 0:00:04]} 21. Rhf1 {[%emt 0:00:10]}
e5 {[%emt 0:00:01]} 22. Rxf4 {[%emt 0:00:11]} exf4 {[%emt 0:00:01]} 23. Qf6 {
[%emt 0:00:00]} d5 {[%emt 0:00:09]} 24. b5 {[%emt 0:00:10]} Nd8 {[%emt 0:00:11]
} 25. Be6 {[%emt 0:00:15]} Nxe6 {[%emt 0:00:04]} 26. Qxe6 {[%emt 0:00:01]} f3 {
[%emt 0:00:05]} 27. Qe8+ {[%emt 0:00:05]} Qc8 {[%emt 0:00:01]} 28. Qe5+ {
[%emt 0:00:01]} Ka8 {[%emt 0:00:01]} 29. Qf4 {[%emt 0:00:05]} Qe8 {[%emt 0:00:
04]} 30. a4 {[%emt 0:00:03]} Nxa4 {[%emt 0:00:01]} 31. Kc1 {[%emt 0:00:09]} Nc3
{[%emt 0:00:01]} 32. Re1 {[%emt 0:00:04]} Ne2+ {[%emt 0:00:02]} 33. Rxe2 {
[%emt 0:00:00]} fxe2 {[%emt 0:00:01]} 34. Kd2 {[%emt 0:00:01]} a6 {[%emt 0:00:
08]} 35. b6 {[%emt 0:00:01]} Qd8 {[%emt 0:00:03]} 36. Qc7 {[%emt 0:00:03]} Qf8
{[%emt 0:00:04]} 37. Kxe2 {[%emt 0:00:02]} d4 {[%emt 0:00:02]} 38. Qe5 {
[%emt 0:00:04]} Qf3+ {[%emt 0:00:04]} 39. Ke1 {[%emt 0:00:01]} Qe3+ {[%emt 0:
00:00]} 40. Kd1 {[%emt 0:00:03]} Qg1+ {[%emt 0:00:02]} 41. Ke2 {[%emt 0:00:05]}
Qg2+ {[%emt 0:00:04]} 42. Ke1 {[%emt 0:00:00]} Qg1+ {[%emt 0:00:01]} 43. Ke2 {
[%emt 0:00:01]} d3+ {[%emt 0:00:02]} 44. cxd3 {[%emt 0:00:01]} exd3+ {[%emt 0:
00:00]} 45. Kxd3 {[%emt 0:00:00]} Qxb6 {[%emt 0:00:01]} 46. Qh8+ {[%emt 0:00:
01]} Ka7 {[%emt 0:00:01]} 47. Qxh7 {[%emt 0:00:01]} Qd6+ {[%emt 0:00:03]} 48.
Kc4 {[%emt 0:00:04]} a5 {[%emt 0:00:02]} 49. h4 {[%emt 0:00:03]} Ka6 {[%emt 0:
00:01]} 50. h5 {[%emt 0:00:04]} Qc6+ {[%emt 0:00:03]} 51. Kb3 {[%emt 0:00:01]}
Qf3+ {[%emt 0:00:02]} 52. Ka2 {[%emt 0:00:06]} Qxh5 {[%emt 0:00:01]} 53. Qc7 {
[%emt 0:00:01]} Qd5+ {[%emt 0:00:01]} 54. Kb2 {[%emt 0:00:03]} Qb5+ {[%emt 0:
00:04]} 55. Ka3 {[%emt 0:00:03]} Qc6 {[%emt 0:00:01]} 56. Qg3 {[%emt 0:00:04]}
b5 {[%emt 0:00:02]} 57. Ka2 a4 {[%emt 0:00:01]} 58. Qe3 {[%emt 0:00:01]} Qc4+ {
[%emt 0:00:03]} 59. Kb2 Qb4+ {[%emt 0:00:02]} 60. Ka2 Qd6 {[%emt 0:00:02]} 61.
Qg5 {[%emt 0:00:02]} Ka5 {[%emt 0:00:03]} 62. Qg2 {[%emt 0:00:01]} Qe6+ {
[%emt 0:00:01]} 63. Kb2 Qb3+ {[%emt 0:00:01]} 64. Ka1 Qc3+ {[%emt 0:00:02]} 65.
Kb1 Qd3+ {[%emt 0:00:04]} 66. Ka1 Qd4+ 67. Ka2 0-1

[Event "FIDE Women World Blitz 2021"]
[Site "Warsaw"]
[Date "2021.12.29"]
[Round "6.16"]
[White "Osmak, Yuliia"]
[Black "Zatonskih, Anna"]
[Result "1-0"]
[ECO "D35"]
[WhiteElo "2198"]
[BlackElo "2394"]
[Annotator "NA"]
[PlyCount "49"]
[EventDate "2021.12.29"]
[EventType "swiss"]
[EventCountry "POL"]
[Tiebreak "Cut1 Buchholz"]
[SourceTitle "playchess.com"]
[Source "ChessBase"]
[SourceQuality "1"]
[TimeControl "180+2"]

1. c4 {[%emt 0:00:01]} e6 {[%emt 0:00:03]} 2. Nc3 {[%emt 0:00:01]} d5 {[%emt 0:
00:01]} 3. d4 {[%emt 0:00:01]} Nf6 {[%emt 0:00:04]} 4. cxd5 {[%emt 0:00:01]}
exd5 {[%emt 0:00:01]} 5. Bg5 {[%emt 0:00:01]} Be7 {[%emt 0:00:00]} 6. e3 {
[%emt 0:00:01]} Nbd7 {[%emt 0:00:04]} 7. Bd3 {[%emt 0:00:05]} Nf8 {[%emt 0:00:
03]} 8. Qc2 {[%emt 0:00:04]} Ne6 {[%emt 0:00:04]} 9. Bh4 {[%emt 0:00:02]} g6 {
[%emt 0:00:02]} 10. h3 {[%emt 0:00:08]} O-O {[%emt 0:00:23]} 11. Nf3 {[%emt 0:
00:04]} b6 {[%emt 0:00:13]} 12. O-O {[%emt 0:00:08]} Bb7 {[%emt 0:00:03]} 13.
Rad1 {[%emt 0:00:26]} Rc8 {[%emt 0:00:34]} 14. Qe2 {[%emt 0:00:17]} c6 {
[%emt 0:00:26]} 15. Ne5 {[%emt 0:00:14]} c5 {[%emt 0:00:08]} 16. Ba6 {[%emt 0:
00:41]} Bxa6 {[%emt 0:00:22]} 17. Qxa6 {[%emt 0:00:02]} cxd4 {[%emt 0:00:03]}
18. exd4 {[%emt 0:00:03]} Qc7 {[%emt 0:00:50]} 19. Bxf6 {[%emt 0:00:07]} Bxf6 {
[%emt 0:00:02]} 20. Nxd5 {[%emt 0:00:01]} Qd8 {[%emt 0:00:01]} 21. Nxf6+ {
[%emt 0:00:05]} Qxf6 {[%emt 0:00:01]} 22. Nd7 {[%emt 0:00:04]} Qg5 {[%emt 0:00:
09]} 23. Nxf8 {[%emt 0:00:09]} Nf4 {[%emt 0:00:01]} 24. g3 {[%emt 0:00:03]}
Rxf8 {[%emt 0:00:09]} 25. Kh2 {[%emt 0:00:08]} 1-0

[Event "FIDE Women World Blitz 2021"]
[Site "Warsaw"]
[Date "2021.12.29"]
[Round "6.17"]
[White "Garcia Martin, Marta"]
[Black "Mammadova, Gulnar"]
[Result "0-1"]
[ECO "C02"]
[WhiteElo "2194"]
[BlackElo "2395"]
[Annotator "NA"]
[PlyCount "56"]
[EventDate "2021.12.29"]
[EventType "swiss"]
[EventCountry "POL"]
[Tiebreak "Cut1 Buchholz"]
[SourceTitle "playchess.com"]
[Source "ChessBase"]
[SourceQuality "1"]
[TimeControl "180+2"]

1. e4 {[%emt 0:00:01]} e6 {[%emt 0:00:02]} 2. d4 {[%emt 0:00:02]} d5 {[%emt 0:
00:01]} 3. e5 {[%emt 0:00:07]} c5 {[%emt 0:00:01]} 4. c3 {[%emt 0:00:01]} Ne7 {
[%emt 0:00:01]} 5. Nf3 {[%emt 0:00:08]} Nec6 {[%emt 0:00:02]} 6. Bd3 {[%emt 0:
00:11]} b6 {[%emt 0:00:01]} 7. O-O {[%emt 0:00:15]} Ba6 {[%emt 0:00:01]} 8.
Bxa6 {[%emt 0:00:43]} Nxa6 {[%emt 0:00:00]} 9. Ng5 {[%emt 0:00:16]} h6 {
[%emt 0:00:26]} 10. Qh5 {[%emt 0:00:04]} g6 {[%emt 0:00:05]} 11. Qh3 {[%emt 0:
00:01]} cxd4 {[%emt 0:00:32]} 12. Nxe6 {[%emt 0:00:32]} fxe6 {[%emt 0:00:01]}
13. Qxe6+ {[%emt 0:00:02]} Ne7 {[%emt 0:00:01]} 14. cxd4 {[%emt 0:00:08]} Bg7 {
[%emt 0:00:37]} 15. Qh3 {[%emt 0:00:21]} Nb4 {[%emt 0:00:08]} 16. Qb3 {[%emt 0:
00:14]} Nbc6 {[%emt 0:00:05]} 17. Be3 {[%emt 0:00:08]} Na5 {[%emt 0:00:01]} 18.
Qd3 {[%emt 0:00:04]} Qd7 {[%emt 0:00:06]} 19. Nc3 {[%emt 0:00:01]} O-O {
[%emt 0:00:04]} 20. Rac1 {[%emt 0:00:10]} Rac8 {[%emt 0:00:02]} 21. Qa6 {
[%emt 0:00:08]} Nf5 {[%emt 0:00:18]} 22. Nb5 {[%emt 0:00:04]} Nxe3 {[%emt 0:00:
09]} 23. fxe3 {[%emt 0:00:02]} Rxc1 {[%emt 0:00:02]} 24. Rxc1 {[%emt 0:00:00]}
Qf5 {[%emt 0:00:01]} 25. Nd6 {[%emt 0:00:06]} Qf2+ {[%emt 0:00:02]} 26. Kh1 {
[%emt 0:00:01]} Nc4 {[%emt 0:00:03]} 27. Rg1 {[%emt 0:00:03]} Nxe3 {[%emt 0:00:
21]} 28. Qb7 {[%emt 0:00:01]} Qxg1+ {[%emt 0:00:05]} 0-1

[Event "FIDE Women World Blitz 2021"]
[Site "Warsaw"]
[Date "2021.12.29"]
[Round "6.18"]
[White "Pavlidou, Ekaterini"]
[Black "Maltsevskaya, Aleksandra"]
[Result "0-1"]
[ECO "E70"]
[WhiteElo "2177"]
[BlackElo "2411"]
[Annotator "NA"]
[PlyCount "52"]
[EventDate "2021.12.29"]
[EventType "swiss"]
[EventCountry "POL"]
[Tiebreak "Cut1 Buchholz"]
[SourceTitle "playchess.com"]
[Source "ChessBase"]
[SourceQuality "1"]
[TimeControl "180+2"]

1. d4 {[%emt 0:00:02]} Nf6 {[%emt 0:00:01]} 2. c4 {[%emt 0:00:01]} g6 {[%emt 0:
00:01]} 3. Nc3 {[%emt 0:00:01]} Bg7 {[%emt 0:00:02]} 4. e4 {[%emt 0:00:01]} d6
{[%emt 0:00:01]} 5. Bd3 {[%emt 0:00:02]} O-O {[%emt 0:00:10]} 6. Nge2 {[%emt 0:
00:01]} c5 {[%emt 0:00:07]} 7. d5 {[%emt 0:00:01]} e6 {[%emt 0:00:01]} 8. h3 {
[%emt 0:00:16]} exd5 {[%emt 0:00:02]} 9. exd5 {[%emt 0:00:01]} a6 {[%emt 0:00:
08]} 10. a4 {[%emt 0:00:01]} Nbd7 {[%emt 0:00:07]} 11. f4 {[%emt 0:00:08]} Rb8
{[%emt 0:00:30]} 12. O-O {[%emt 0:00:03]} Re8 {[%emt 0:00:33]} 13. Qc2 {
[%emt 0:00:08]} b5 {[%emt 0:00:26]} 14. axb5 {[%emt 0:00:09]} axb5 {[%emt 0:00:
01]} 15. Nxb5 {[%emt 0:00:07]} Rxb5 {[%emt 0:00:02]} 16. cxb5 {[%emt 0:00:03]}
Nxd5 {[%emt 0:00:02]} 17. Bd2 {[%emt 0:00:55]} Bb7 {[%emt 0:00:00]} 18. Ra7 {
[%emt 0:00:14]} Qb6 {[%emt 0:00:01]} 19. Rxb7 {[%emt 0:00:10]} Qxb7 {[%emt 0:
00:02]} 20. Bc4 {[%emt 0:00:21]} N7b6 {[%emt 0:00:10]} 21. Ng3 {[%emt 0:00:16]}
Ne3 {[%emt 0:00:39]} 22. Bxe3 {[%emt 0:00:03]} Rxe3 {[%emt 0:00:00]} 23. f5 {
[%emt 0:00:24]} Nxc4 {[%emt 0:00:05]} 24. fxg6 {[%emt 0:00:05]} hxg6 {[%emt 0:
00:17]} 25. Qxc4 {[%emt 0:00:07]} Rxg3 {[%emt 0:00:02]} 26. Rf2 {[%emt 0:00:01]
} Bd4 {[%emt 0:00:01]} 0-1